{"text_format":"1","workbook":"xlsx","n_sheets":7,"sheets":["EJEMPLOS","COMPROBACION","ESTIMACION","FORMATO DE PASAJES","TARIFAS 2019","INSTRUCTIVO LLENADO","FORMATO PASAJES"],"not_rendered":{"charts":0,"images":9,"macros":1,"external_links":0,"defined_names":2,"comments":2,"pivot_tables":0},"unopened":[],"bounds":{"document_bytes":16777216,"sheet_cells":100000,"rows_first":2000,"rows_last":500,"rows_between":2000,"halvings":0,"cell_chars":16384,"cell_head_chars":4096},"cells_cut":0,"cells_raw":0,"read":"whole","date_system":"1900"}

{"sheet":"EJEMPLOS","index":0,"n_rows":25,"n_cols":3,"rows_kept":25,"cut":false,"hidden":true,"merged":[[2,1,2,2],[6,1,6,2],[10,1,10,2],[14,1,14,2],[18,1,18,2]]}
[null,"ExcelTotal.com - Convertir números a letras en Excel"]
[]
[null,"Ejemplo 1: Conversión simple de un número a letra"]
[null,"Número:",5]
[null,"Letra:",{"$f":"CONVERTIRNUM(C4)","v":"Cinco Pesos 00/100"}]
[]
[null,"Ejemplo 2: Conversión de número con decimales en letras"]
[null,"Número:",24.6]
[null,"Letra:",{"$f":"CONVERTIRNUM(C8, TRUE)","v":"Veinticuatro Pesos Con Sesenta Centavos"}]
[]
[null,"Ejemplo 3: Texto en mayúsculas"]
[null,"Número:",120.05]
[null,"Letra:",{"$f":"UPPER(CONVERTIRNUM(C12, TRUE))","v":"CIENTO VEINTE PESOS CON CINCO CENTAVOS"}]
[]
[null,"Ejemplo 4: Texto entre paréntesis"]
[null,"Número:",200.85]
[null,"Letra:",{"$f":"CONCATENATE(\"(\", UPPER(CONVERTIRNUM(C16)), \")\")","v":"(DOSCIENTOS PESOS 85/100)"}]
[]
[null,"Ejemplo 5: Con texto adicional"]
[null,"Número:",1534.6]
[null,"Letra:",{"$f":"CONCATENATE(\"(SON \", UPPER(CONVERTIRNUM(C20)), \" M.N.)\")","v":"(SON MIL QUINIENTOS TREINTA Y CUATRO PESOS 60/100 M.N.)"}]
[]
[null,"Número máximo permitido"]
[null,"Número:",1999999999.99]
[null,"Letra:",{"$f":"CONVERTIRNUM(C24, TRUE)","v":"Mil Novecientos Noventa y Nueve Millones Novecientos Noventa y Nueve Mil Novecientos Noventa y Nueve Pesos Con Noventa y Nueve Centavos"}]

{"sheet":"COMPROBACION","index":1,"n_rows":210,"n_cols":21,"rows_kept":210,"cut":false,"hidden":true,"merged":[[194,0,195,20],[196,0,199,20],[201,0,201,9],[201,11,201,20],[205,0,205,9],[205,11,205,20],[206,0,206,9],[206,11,206,20],[185,8,187,16],[185,4,187,7],[185,0,187,3],[185,17,187,20],[188,0,189,8],[188,9,189,16],[188,17,189,20],[190,0,191,8],[190,9,191,16],[190,17,191,20],[192,0,193,3],[192,4,193,20],[183,0,183,6],[183,7,183,9],[183,10,183,19],[184,0,184,3],[184,4,184,7],[184,8,184,16],[184,17,184,20],[180,0,180,3],[180,4,180,7],[180,8,180,9],[180,10,180,12],[180,13,180,19],[181,0,182,1],[181,2,181,3],[181,4,182,12],[181,13,182,20],[182,2,182,3],[166,0,166,20],[167,0,167,20],[168,0,168,20],[169,0,169,20],[171,0,171,20],[173,17,173,19],[178,0,178,3],[178,4,178,16],[178,17,178,18],[178,19,178,20],[100,0,100,9],[100,11,100,20],[88,0,89,20],[90,0,93,20],[95,0,95,9],[95,11,95,20],[99,0,99,9],[99,11,99,20],[84,0,85,8],[84,9,85,16],[84,17,85,20],[86,0,87,3],[86,4,87,20],[80,8,80,16],[81,8,81,16],[82,0,83,8],[82,9,83,16],[82,17,83,20],[78,0,78,3],[78,4,78,7],[78,8,78,16],[78,17,78,20],[79,0,79,3],[79,4,79,7],[79,8,79,16],[79,17,79,20],[75,0,76,1],[75,4,76,12],[75,13,76,20],[77,0,77,6],[77,7,77,9],[77,10,77,19],[74,0,74,3],[74,4,74,7],[74,8,74,9],[74,10,74,12],[74,13,74,19],[75,2,75,3],[76,2,76,3],[63,0,63,20],[65,0,65,20],[67,17,67,19],[72,0,72,3],[72,4,72,16],[72,17,72,18],[72,19,72,20],[46,0,46,9],[46,11,46,20],[60,0,60,20],[61,0,61,20],[62,0,62,20],[34,0,35,20],[36,0,39,20],[41,0,41,9],[41,11,41,20],[45,0,45,9],[45,11,45,20],[30,0,31,8],[30,9,31,16],[30,17,31,20],[32,0,33,3],[32,4,33,20],[26,8,26,16],[27,8,27,16],[28,0,29,8],[28,9,29,16],[28,17,29,20],[24,0,24,3],[24,4,24,7],[24,8,24,16],[24,17,24,20],[25,0,25,3],[25,4,25,7],[25,8,25,16],[25,17,25,20],[21,0,22,1],[21,4,22,12],[21,13,22,20],[23,0,23,6],[23,7,23,9],[23,10,23,19],[20,0,20,3],[20,4,20,7],[20,8,20,9],[20,10,20,12],[20,13,20,19],[21,2,21,3],[22,2,22,3],[18,19,18,20],[134,8,134,16],[135,0,136,8],[135,9,136,16],[135,17,136,20],[152,0,152,9],[152,11,152,20],[153,0,153,9],[153,11,153,20],[132,0,132,3],[132,4,132,7],[132,8,132,16],[132,17,132,20],[133,8,133,16],[127,13,127,19],[128,0,129,1],[128,4,129,12],[128,13,129,20],[130,0,130,6],[130,7,130,9],[130,10,130,19],[127,0,127,3],[127,4,127,7],[127,8,127,9],[6,0,6,20],[7,0,7,20],[8,0,8,20],[9,0,9,20],[11,0,11,20],[13,17,13,19],[131,0,131,3],[131,4,131,7],[131,8,131,16],[131,17,131,20],[114,0,114,20],[116,0,116,20],[115,0,115,20],[118,0,118,20],[120,17,120,19],[125,0,125,3],[125,4,125,16],[125,17,125,18],[125,19,125,20],[113,0,113,20],[18,0,18,3],[18,4,18,16],[18,17,18,18],[127,10,127,12],[148,0,148,9],[148,11,148,20],[128,2,128,3],[129,2,129,3],[137,0,138,8],[137,9,138,16],[137,17,138,20],[139,0,140,3],[139,4,140,20],[141,0,142,20],[143,0,146,20]]}
[]
[]
[]
[]
[null,null,null,null,null,null,null,null,null,null,null,null,null,null,null,null,null,null,null,null,"Secretaría de Administración"]
[null,null,null,null,null,null,null,null,null,null,null,null,null,null,null,null,null,null,null,null,"Dirección de Administración Financiera"]
[]
["COLEGIO NACIONAL DE EDUCACION PROFESIONAL TECNICA"]
["UNIDAD DE OPERACIÓN DESCONCENTRADA PARA EL DISTRITO FEDERAL"]
["COORDINACION DE PLANEACION OPERATIVA"]
[]
["COMPROBACION DE GASTOS A COMPROBAR 2016"]
[]
[null,null,null,null,null,null,null,null,null,null,null,null,null,null,null,null,null,"FOLIO:"]
[]
[]
[]
[]
["BENEFICIARIO",null,null,null,"ING. JOSE ANTONIO PADILLA  SEGURA III",null,null,null,null,null,null,null,null,null,null,null,null,"CLAVE:",null,"002"]
[]
["VALOR DEL SERVICIO",null,null,null,60686.89,null,null,null,"IVA",null,9709.9,null,null,"NETO PAGADO",null,null,null,null,null,null,{"$f":"E21+K21","v":70396.789999999994}]
["FOLIO A COMPROBAR:",null,"276",null,"REMESA A COMPROBAR",null,null,null,null,null,null,null,null,{"$f":"R31","v":71524.01999999999}]
[null,null,"FEBRERO"]
["PROCESO",null,null,null,null,null,null,"E008",null,null,"FUENTE DE FINANCIAMIENTO",null,null,null,null,null,null,null,null,null,"IP"]
["CLAVE PRESUPUESTAL",null,null,null,"CUENTA CONTABLE",null,null,null,"DESCRIPCION ",null,null,null,null,null,null,null,null,"IMPORTE"]
[31701,null,null,null,5321004,null,null,null,"SERVICIO DE CONDUCCION Y SEÑALES ANALOGICAS",null,null,null,null,null,null,null,null,{"$f":"U21","v":70396.789999999994}]
[]
[]
["COMPROBACION CON DOCUMENTOS   (  X    )  ",null,null,null,null,null,null,null,null,"COMPROBACION CON DEPOSITO (    X  )",null,null,null,null,null,null,null,"TOTAL COMPROBADO"]
["COMPROBACION CON DETALLE DEL GASTO   (      )  "]
[{"$f":"R26","v":70396.789999999994},null,null,null,null,null,null,null,null,1127.23,null,null,null,null,null,null,null,{"$f":"A31+J31","v":71524.01999999999}]
["COMPROBACION CON DETALLE DEL GASTO   (      )  "]
["IMPORTE CON LETRA",null,null,null,{"$f":"CONCATENATE(UPPER(CONVERTIRNUM(R31)),\"M.N.\")","v":"SETENTA Y UN MIL QUINIENTOS VEINTICUATRO PESOS 02/100M.N."},{"$f":"CONCATENATE(UPPER(CONVERTIRNUM(X30)),\"M.N.\")","v":"CERO PESOS 00/100M.N."},{"$f":"CONCATENATE(UPPER(CONVERTIRNUM(Y30)),\"M.N.\")","v":"CERO PESOS 00/100M.N."},{"$f":"CONCATENATE(UPPER(CONVERTIRNUM(Z30)),\"M.N.\")","v":"CERO PESOS 00/100M.N."},{"$f":"CONCATENATE(UPPER(CONVERTIRNUM(AA30)),\"M.N.\")","v":"CERO PESOS 00/100M.N."},{"$f":"CONCATENATE(UPPER(CONVERTIRNUM(AB30)),\"M.N.\")","v":"CERO PESOS 00/100M.N."},{"$f":"CONCATENATE(UPPER(CONVERTIRNUM(AC30)),\"M.N.\")","v":"CERO PESOS 00/100M.N."},{"$f":"CONCATENATE(UPPER(CONVERTIRNUM(AD30)),\"M.N.\")","v":"CERO PESOS 00/100M.N."},{"$f":"CONCATENATE(UPPER(CONVERTIRNUM(AE30)),\"M.N.\")","v":"CERO PESOS 00/100M.N."},{"$f":"CONCATENATE(UPPER(CONVERTIRNUM(AF30)),\"M.N.\")","v":"CERO PESOS 00/100M.N."},{"$f":"CONCATENATE(UPPER(CONVERTIRNUM(AG30)),\"M.N.\")","v":"CERO PESOS 00/100M.N."},{"$f":"CONCATENATE(UPPER(CONVERTIRNUM(AH30)),\"M.N.\")","v":"CERO PESOS 00/100M.N."},{"$f":"CONCATENATE(UPPER(CONVERTIRNUM(AI30)),\"M.N.\")","v":"CERO PESOS 00/100M.N."},{"$f":"CONCATENATE(UPPER(CONVERTIRNUM(AJ30)),\"M.N.\")","v":"CERO PESOS 00/100M.N."},{"$f":"CONCATENATE(UPPER(CONVERTIRNUM(AK30)),\"M.N.\")","v":"CERO PESOS 00/100M.N."},{"$f":"CONCATENATE(UPPER(CONVERTIRNUM(AL30)),\"M.N.\")","v":"CERO PESOS 00/100M.N."},{"$f":"CONCATENATE(UPPER(CONVERTIRNUM(AM30)),\"M.N.\")","v":"CERO PESOS 00/100M.N."}]
[null,null,null,null,{"$f":"CONCATENATE(UPPER(CONVERTIRNUM(W31)),\"M.N.\")","v":"CERO PESOS 00/100M.N."},"CERO PESOS 00/100M.N.","CERO PESOS 00/100M.N.","CERO PESOS 00/100M.N.","CERO PESOS 00/100M.N.","CERO PESOS 00/100M.N.","CERO PESOS 00/100M.N.","CERO PESOS 00/100M.N.","CERO PESOS 00/100M.N.","CERO PESOS 00/100M.N.","CERO PESOS 00/100M.N.","CERO PESOS 00/100M.N.","CERO PESOS 00/100M.N.","CERO PESOS 00/100M.N.","CERO PESOS 00/100M.N.","CERO PESOS 00/100M.N.","CERO PESOS 00/100M.N."]
["POR CONCEPTO DE : COMPROBACION DE GASTOS POR COMPRA DE MATERIALES PARA CURSOS DE CAPACITACION SEP."]
[]
["PARA LOS EFECTOS LEGALES Y ADMINISTRATIVOS PROCEDENTES, SE HACE CONSTAR QUE LA FISCALIZACION QUE SUSTENTAN LA VERACIDAD DE LA DOCUMENTACION COMPROBATORIA Y JUSTIFICATORIA RELACIONADA, ASI COMO EL CUMPLIMIENTO DE LOS REQUISITOS FISCALES LA MISMA ESTABLECIDOS EN LA NORMATIVIDAD VIGENTE, ES RESPONSABILIDAD DEL DIRECTOR Y DEL JEFE DE PROYECTO DE SERVICIOS ADMINISTRATIVOS O DEL ENCARGADO DE LA MISMA Y/O RESPONSABLE (S) QUE FIRMEN ALCANCE DE LA RELACION . EN EL ENTENDIDO DE QUE PARA EFECTOS DE SUPERVISION Y AUDITORIA  LA DOCUMENTACION SOPORTE ORIGINAL SE ENVIA  A LA DIRECCION DE ADMINISTRACION FINANCIERA EN OFICINAS NACIONALES. "]
[]
[]
[]
[]
["ELABORO ",null,null,null,null,null,null,null,null,null,null,"AUTORIZO"]
[]
[]
[]
["C.P SAUL LOPEZ ESQUIVEL",null,null,null,null,null,null,null,null,null,null,"DR. JORGE GALILEO CASTILLO VAQUERA"]
["COORDINADOR DE PLANEACION OPERATIVA",null,null,null,null,null,null,null,null,null,null,"TITULAR DE LA UOD D.F"]
[]
[]
["FGC-002-033  F-276 OFNL"]
[]
[]
[]
[]
[]
[]
[]
[]
[null,null,null,null,null,null,null,null,null,null,null,null,null,null,null,null,null,null,null,null,"Secretaría de Administración"]
[null,null,null,null,null,null,null,null,null,null,null,null,null,null,null,null,null,null,null,null,"Dirección de Administración Financiera"]
[]
["COLEGIO NACIONAL DE EDUCACION PROFESIONAL TECNICA"]
["UNIDAD DE OPERACIÓN DESCONCENTRADA PARA EL DISTRITO FEDERAL"]
["COORDINACION DE PLANEACION OPERATIVA"]
[]
["COMPROBACION DE GASTOS A COMPROBAR 2016"]
[]
[null,null,null,null,null,null,null,null,null,null,null,null,null,null,null,null,null,"FOLIO:"]
[]
[]
[]
[]
["BENEFICIARIO",null,null,null,{"$f":"E19","v":"ING. JOSE ANTONIO PADILLA  SEGURA III"},null,null,null,null,null,null,null,null,null,null,null,null,"CLAVE:",null,"7100"]
[]
["VALOR DEL SERVICIO",null,null,null,0,null,null,null,"IVA",null,0,null,null,"NETO PAGADO",null,null,null,null,null,null,{"$f":"E75+K75","v":0}]
["FOLIO A COMPROBAR:",null,"069",null,"REMESA A COMPROBAR",null,null,null,null,null,null,null,null,967901]
[null,null,"ENERO"]
["PROCESO",null,null,null,null,null,null,"E008",null,null,"FUENTE DE FINANCIAMIENTO",null,null,null,null,null,null,null,null,null,"IP"]
["CLAVE PRESUPUESTAL",null,null,null,"CUENTA CONTABLE",null,null,null,"DESCRIPCION ",null,null,null,null,null,null,null,null,"IMPORTE"]
[31301,null,null,null,5321004,null,null,null,"SERVICIO DE AGUA",null,null,null,null,null,null,null,null,967901]
[]
[]
["COMPROBACION CON DOCUMENTOS   (  X    )  ",null,null,null,null,null,null,null,null,"COMPROBACION CON DEPOSITO (      )",null,null,null,null,null,null,null,"TOTAL COMPROBADO"]
["COMPROBACION CON DETALLE DEL GASTO   (      )  "]
[967901,null,null,null,null,null,null,null,null,0,null,null,null,null,null,null,null,{"$f":"A85+J85","v":967901}]
["COMPROBACION CON DETALLE DEL GASTO   (      )  "]
["IMPORTE CON LETRA",null,null,null,{"$f":"CONCATENATE(UPPER(CONVERTIRNUM(R85)),\"M.N.\")","v":"NOVECIENTOS SESENTA Y SIETE MIL NOVECIENTOS UN PESOS 00/100M.N."},{"$f":"CONCATENATE(UPPER(CONVERTIRNUM(X84)),\"M.N.\")","v":"CERO PESOS 00/100M.N."},{"$f":"CONCATENATE(UPPER(CONVERTIRNUM(Y84)),\"M.N.\")","v":"CERO PESOS 00/100M.N."},{"$f":"CONCATENATE(UPPER(CONVERTIRNUM(Z84)),\"M.N.\")","v":"CERO PESOS 00/100M.N."},{"$f":"CONCATENATE(UPPER(CONVERTIRNUM(AA84)),\"M.N.\")","v":"CERO PESOS 00/100M.N."},{"$f":"CONCATENATE(UPPER(CONVERTIRNUM(AB84)),\"M.N.\")","v":"CERO PESOS 00/100M.N."},{"$f":"CONCATENATE(UPPER(CONVERTIRNUM(AC84)),\"M.N.\")","v":"CERO PESOS 00/100M.N."},{"$f":"CONCATENATE(UPPER(CONVERTIRNUM(AD84)),\"M.N.\")","v":"CERO PESOS 00/100M.N."},{"$f":"CONCATENATE(UPPER(CONVERTIRNUM(AE84)),\"M.N.\")","v":"CERO PESOS 00/100M.N."},{"$f":"CONCATENATE(UPPER(CONVERTIRNUM(AF84)),\"M.N.\")","v":"CERO PESOS 00/100M.N."},{"$f":"CONCATENATE(UPPER(CONVERTIRNUM(AG84)),\"M.N.\")","v":"CERO PESOS 00/100M.N."},{"$f":"CONCATENATE(UPPER(CONVERTIRNUM(AH84)),\"M.N.\")","v":"CERO PESOS 00/100M.N."},{"$f":"CONCATENATE(UPPER(CONVERTIRNUM(AI84)),\"M.N.\")","v":"CERO PESOS 00/100M.N."},{"$f":"CONCATENATE(UPPER(CONVERTIRNUM(AJ84)),\"M.N.\")","v":"CERO PESOS 00/100M.N."},{"$f":"CONCATENATE(UPPER(CONVERTIRNUM(AK84)),\"M.N.\")","v":"CERO PESOS 00/100M.N."},{"$f":"CONCATENATE(UPPER(CONVERTIRNUM(AL84)),\"M.N.\")","v":"CERO PESOS 00/100M.N."},{"$f":"CONCATENATE(UPPER(CONVERTIRNUM(AM84)),\"M.N.\")","v":"CERO PESOS 00/100M.N."}]
[null,null,null,null,{"$f":"CONCATENATE(UPPER(CONVERTIRNUM(W85)),\"M.N.\")","v":"CERO PESOS 00/100M.N."},"CERO PESOS 00/100M.N.","CERO PESOS 00/100M.N.","CERO PESOS 00/100M.N.","CERO PESOS 00/100M.N.","CERO PESOS 00/100M.N.","CERO PESOS 00/100M.N.","CERO PESOS 00/100M.N.","CERO PESOS 00/100M.N.","CERO PESOS 00/100M.N.","CERO PESOS 00/100M.N.","CERO PESOS 00/100M.N.","CERO PESOS 00/100M.N.","CERO PESOS 00/100M.N.","CERO PESOS 00/100M.N.","CERO PESOS 00/100M.N.","CERO PESOS 00/100M.N."]
["POR CONCEPTO DE : COMPROBACION DE GASTOS POR EL PAGO DEL 6TO. BIMESTRE DEL AGUA DE LOS 27 PLANTELES Y LA UCI, SE ANEXAN 29 BOLETAS ORIGINALES"]
[]
["PARA LOS EFECTOS LEGALES Y ADMINISTRATIVOS PROCEDENTES, SE HACE CONSTAR QUE LA FISCALIZACION QUE SUSTENTAN LA VERACIDAD DE LA DOCUMENTACION COMPROBATORIA Y JUSTIFICATORIA RELACIONADA, ASI COMO EL CUMPLIMIENTO DE LOS REQUISITOS FISCALES LA MISMA ESTABLECIDOS EN LA NORMATIVIDAD VIGENTE, ES RESPONSABILIDAD DEL DIRECTOR Y DEL JEFE DE PROYECTO DE SERVICIOS ADMINISTRATIVOS O DEL ENCARGADO DE LA MISMA Y/O RESPONSABLE (S) QUE FIRMEN ALCANCE DE LA RELACION . EN EL ENTENDIDO DE QUE PARA EFECTOS DE SUPERVISION Y AUDITORIA  LA DOCUMENTACION SOPORTE ORIGINAL SE ENVIA  A LA DIRECCION DE ADMINISTRACION FINANCIERA EN OFICINAS NACIONALES. "]
[]
[]
[]
[]
["ELABORO ",null,null,null,null,null,null,null,null,null,null,"AUTORIZO"]
[]
[]
[]
["C.P SAUL LOPEZ ESQUIVEL",null,null,null,null,null,null,null,null,null,null,"DR. JORGE GALILEO CASTILLO VAQUERA"]
["COORDINADOR DE PLANEACION OPERATIVA",null,null,null,null,null,null,null,null,null,null,"TITULAR DE LA UOD D.F"]
[]
[]
["FGC-003-005 UOD7100 F-069 OFNL"]
[]
[]
[]
[]
[]
[]
[]
[null,null,null,null,null,null,null,null,null,null,null,null,null,null,null,null,null,null,null,null,"Secretaría de Administración"]
[null,null,null,null,null,null,null,null,null,null,null,null,null,null,null,null,null,null,null,null,"Dirección de Administración Financiera"]
[]
["COLEGIO NACIONAL DE EDUCACION PROFESIONAL TECNICA"]
["UNIDAD DE OPERACIÓN DESCONCENTRADA PARA EL DISTRITO FEDERAL"]
["COORDINACION DE PLANEACION OPERATIVA"]
[]
["COMPROBACION DE GASTOS A COMPROBAR 2016"]
[]
[null,null,null,null,null,null,null,null,null,null,null,null,null,null,null,null,null,"FOLIO:"]
[]
[]
[]
[]
["BENEFICIARIO",null,null,null,{"$f":"E73","v":"ING. JOSE ANTONIO PADILLA  SEGURA III"},null,null,null,null,null,null,null,null,null,null,null,null,"CLAVE:",null,"7100"]
[]
["VALOR DEL SERVICIO",null,null,null,1723.88,null,null,null,"IVA",null,275.82,null,null,"NETO PAGADO",null,null,null,null,null,null,{"$f":"E128+K128","v":1999.7}]
["FOLIO A COMPROBAR:",null,"269",null,"REMESA A COMPROBAR",null,null,null,null,null,null,null,null,1999.7]
[null,null,"FEBRERO"]
["PROCESO",null,null,null,null,null,null,"E007",null,null,"FUENTE DE FINANCIAMIENTO",null,null,null,null,null,null,null,null,null,"IP"]
["CLAVE PRESUPUESTAL",null,null,null,"CUENTA CONTABLE",null,null,null,"DESCRIPCION ",null,null,null,null,null,null,null,null,"IMPORTE"]
[31701,null,null,null,5321004,null,null,null,"SERVICIO DE CONDUCCION Y SEÑALES ANALOGICAS",null,null,null,null,null,null,null,null,{"$f":"N129","v":1999.7}]
[]
[]
["COMPROBACION CON DOCUMENTOS   (  X    )  ",null,null,null,null,null,null,null,null,"COMPROBACION CON DEPOSITO (      )",null,null,null,null,null,null,null,"TOTAL COMPROBADO"]
["COMPROBACION CON DETALLE DEL GASTO   (      )  "]
[1999.7,null,null,null,null,null,null,null,null,0,null,null,null,null,null,null,null,{"$f":"A138+J138","v":1999.7}]
["COMPROBACION CON DETALLE DEL GASTO   (      )  "]
["IMPORTE CON LETRA",null,null,null,{"$f":"CONCATENATE(UPPER(CONVERTIRNUM(R138)),\"M.N.\")","v":"MIL NOVECIENTOS NOVENTA Y NUEVE PESOS 70/100M.N."},{"$f":"CONCATENATE(UPPER(CONVERTIRNUM(X137)),\"M.N.\")","v":"CERO PESOS 00/100M.N."},{"$f":"CONCATENATE(UPPER(CONVERTIRNUM(Y137)),\"M.N.\")","v":"CERO PESOS 00/100M.N."},{"$f":"CONCATENATE(UPPER(CONVERTIRNUM(Z137)),\"M.N.\")","v":"CERO PESOS 00/100M.N."},{"$f":"CONCATENATE(UPPER(CONVERTIRNUM(AA137)),\"M.N.\")","v":"CERO PESOS 00/100M.N."},{"$f":"CONCATENATE(UPPER(CONVERTIRNUM(AB137)),\"M.N.\")","v":"CERO PESOS 00/100M.N."},{"$f":"CONCATENATE(UPPER(CONVERTIRNUM(AC137)),\"M.N.\")","v":"CERO PESOS 00/100M.N."},{"$f":"CONCATENATE(UPPER(CONVERTIRNUM(AD137)),\"M.N.\")","v":"CERO PESOS 00/100M.N."},{"$f":"CONCATENATE(UPPER(CONVERTIRNUM(AE137)),\"M.N.\")","v":"CERO PESOS 00/100M.N."},{"$f":"CONCATENATE(UPPER(CONVERTIRNUM(AF137)),\"M.N.\")","v":"CERO PESOS 00/100M.N."},{"$f":"CONCATENATE(UPPER(CONVERTIRNUM(AG137)),\"M.N.\")","v":"CERO PESOS 00/100M.N."},{"$f":"CONCATENATE(UPPER(CONVERTIRNUM(AH137)),\"M.N.\")","v":"CERO PESOS 00/100M.N."},{"$f":"CONCATENATE(UPPER(CONVERTIRNUM(AI137)),\"M.N.\")","v":"CERO PESOS 00/100M.N."},{"$f":"CONCATENATE(UPPER(CONVERTIRNUM(AJ137)),\"M.N.\")","v":"CERO PESOS 00/100M.N."},{"$f":"CONCATENATE(UPPER(CONVERTIRNUM(AK137)),\"M.N.\")","v":"CERO PESOS 00/100M.N."},{"$f":"CONCATENATE(UPPER(CONVERTIRNUM(AL137)),\"M.N.\")","v":"CERO PESOS 00/100M.N."},{"$f":"CONCATENATE(UPPER(CONVERTIRNUM(AM137)),\"M.N.\")","v":"CERO PESOS 00/100M.N."}]
[null,null,null,null,{"$f":"CONCATENATE(UPPER(CONVERTIRNUM(W138)),\"M.N.\")","v":"CERO PESOS 00/100M.N."},"CERO PESOS 00/100M.N.","CERO PESOS 00/100M.N.","CERO PESOS 00/100M.N.","CERO PESOS 00/100M.N.","CERO PESOS 00/100M.N.","CERO PESOS 00/100M.N.","CERO PESOS 00/100M.N.","CERO PESOS 00/100M.N.","CERO PESOS 00/100M.N.","CERO PESOS 00/100M.N.","CERO PESOS 00/100M.N.","CERO PESOS 00/100M.N.","CERO PESOS 00/100M.N.","CERO PESOS 00/100M.N.","CERO PESOS 00/100M.N.","CERO PESOS 00/100M.N."]
["POR CONCEPTO DE : COMPROBACION DE GASTOS POR EL SERVICIO DE INTERNET, SE ANEXA ORIGINAL DE RECIBO TELEFONICO Y COMPROBANTE DE PAGO."]
[]
["PARA LOS EFECTOS LEGALES Y ADMINISTRATIVOS PROCEDENTES, SE HACE CONSTAR QUE LA FISCALIZACION QUE SUSTENTAN LA VERACIDAD DE LA DOCUMENTACION COMPROBATORIA Y JUSTIFICATORIA RELACIONADA, ASI COMO EL CUMPLIMIENTO DE LOS REQUISITOS FISCALES LA MISMA ESTABLECIDOS EN LA NORMATIVIDAD VIGENTE, ES RESPONSABILIDAD DEL DIRECTOR Y DEL JEFE DE PROYECTO DE SERVICIOS ADMINISTRATIVOS O DEL ENCARGADO DE LA MISMA Y/O RESPONSABLE (S) QUE FIRMEN ALCANCE DE LA RELACION . EN EL ENTENDIDO DE QUE PARA EFECTOS DE SUPERVISION Y AUDITORIA  LA DOCUMENTACION SOPORTE ORIGINAL SE ENVIA  A LA DIRECCION DE ADMINISTRACION FINANCIERA EN OFICINAS NACIONALES. "]
[]
[]
[]
[]
["ELABORO ",null,null,null,null,null,null,null,null,null,null,"AUTORIZO"]
[]
[]
[]
["C.P SAUL LOPEZ ESQUIVEL",null,null,null,null,null,null,null,null,null,null,"DR. JORGE GALILEO CASTILLO VAQUERA"]
["COORDINADOR DE PLANEACION OPERATIVA",null,null,null,null,null,null,null,null,null,null,"TITULAR DE LA UOD D.F"]
[]
[]
["FGC-004-063 UOD7100 F-269 OFNL"]
[]
[]
[]
[]
[]
[]
[]
[null,null,null,null,null,null,null,null,null,null,null,null,null,null,null,null,null,null,null,null,"Secretaría de Administración"]
[null,null,null,null,null,null,null,null,null,null,null,null,null,null,null,null,null,null,null,null,"Dirección de Administración Financiera"]
[]
["COLEGIO NACIONAL DE EDUCACION PROFESIONAL TECNICA"]
["UNIDAD DE OPERACIÓN DESCONCENTRADA PARA EL DISTRITO FEDERAL"]
["COORDINACION DE PLANEACION OPERATIVA"]
[]
["COMPROBACION DE GASTOS A COMPROBAR 2016"]
[]
[null,null,null,null,null,null,null,null,null,null,null,null,null,null,null,null,null,"FOLIO:"]
[]
[]
[]
[]
["BENEFICIARIO",null,null,null,{"$f":"E126","v":"ING. JOSE ANTONIO PADILLA  SEGURA III"},null,null,null,null,null,null,null,null,null,null,null,null,"CLAVE:",null,"7100"]
[]
["VALOR DEL SERVICIO",null,null,null,1362.82,null,null,null,"IVA",null,218.05,null,null,"NETO PAGADO",null,null,null,null,null,null,{"$f":"E181+K181","v":1580.87}]
["FOLIO A COMPROBAR:",null,266,null,"REMESA A COMPROBAR",null,null,null,null,null,null,null,null,3248]
[null,null,"FEBRERO"]
["PROCESO",null,null,null,null,null,null,"E008",null,null,"FUENTE DE FINANCIAMIENTO",null,null,null,null,null,null,null,null,null,"IP"]
["CLAVE PRESUPUESTAL",null,null,null,"CUENTA CONTABLE",null,null,null,"DESCRIPCION ",null,null,null,null,null,null,null,null,"IMPORTE"]
[33604,null,null,null,5321004,null,null,null,"Impresión y elaboración de material informativo derivado de la operación y administración de las dependencias y entidades",null,null,null,null,null,null,null,null,1580.87]
[]
[]
["COMPROBACION CON DOCUMENTOS   (  X    )  ",null,null,null,null,null,null,null,null,"COMPROBACION CON DEPOSITO (  X   )",null,null,null,null,null,null,null,"TOTAL COMPROBADO"]
["COMPROBACION CON DETALLE DEL GASTO   (      )  "]
[1580.87,null,null,null,null,null,null,null,null,1667.13,null,null,null,null,null,null,null,{"$f":"A191+J191","v":3248}]
["COMPROBACION CON DETALLE DEL GASTO   (      )  "]
["IMPORTE CON LETRA",null,null,null,{"$f":"CONCATENATE(UPPER(CONVERTIRNUM(R191)),\"M.N.\")","v":"TRES MIL DOSCIENTOS CUARENTA Y OCHO PESOS 00/100M.N."},{"$f":"CONCATENATE(UPPER(CONVERTIRNUM(X190)),\"M.N.\")","v":"CERO PESOS 00/100M.N."},{"$f":"CONCATENATE(UPPER(CONVERTIRNUM(Y190)),\"M.N.\")","v":"CERO PESOS 00/100M.N."},{"$f":"CONCATENATE(UPPER(CONVERTIRNUM(Z190)),\"M.N.\")","v":"CERO PESOS 00/100M.N."},{"$f":"CONCATENATE(UPPER(CONVERTIRNUM(AA190)),\"M.N.\")","v":"CERO PESOS 00/100M.N."},{"$f":"CONCATENATE(UPPER(CONVERTIRNUM(AB190)),\"M.N.\")","v":"CERO PESOS 00/100M.N."},{"$f":"CONCATENATE(UPPER(CONVERTIRNUM(AC190)),\"M.N.\")","v":"CERO PESOS 00/100M.N."},{"$f":"CONCATENATE(UPPER(CONVERTIRNUM(AD190)),\"M.N.\")","v":"CERO PESOS 00/100M.N."},{"$f":"CONCATENATE(UPPER(CONVERTIRNUM(AE190)),\"M.N.\")","v":"CERO PESOS 00/100M.N."},{"$f":"CONCATENATE(UPPER(CONVERTIRNUM(AF190)),\"M.N.\")","v":"CERO PESOS 00/100M.N."},{"$f":"CONCATENATE(UPPER(CONVERTIRNUM(AG190)),\"M.N.\")","v":"CERO PESOS 00/100M.N."},{"$f":"CONCATENATE(UPPER(CONVERTIRNUM(AH190)),\"M.N.\")","v":"CERO PESOS 00/100M.N."},{"$f":"CONCATENATE(UPPER(CONVERTIRNUM(AI190)),\"M.N.\")","v":"CERO PESOS 00/100M.N."},{"$f":"CONCATENATE(UPPER(CONVERTIRNUM(AJ190)),\"M.N.\")","v":"CERO PESOS 00/100M.N."},{"$f":"CONCATENATE(UPPER(CONVERTIRNUM(AK190)),\"M.N.\")","v":"CERO PESOS 00/100M.N."},{"$f":"CONCATENATE(UPPER(CONVERTIRNUM(AL190)),\"M.N.\")","v":"CERO PESOS 00/100M.N."},{"$f":"CONCATENATE(UPPER(CONVERTIRNUM(AM190)),\"M.N.\")","v":"CERO PESOS 00/100M.N."}]
[null,null,null,null,{"$f":"CONCATENATE(UPPER(CONVERTIRNUM(W191)),\"M.N.\")","v":"CERO PESOS 00/100M.N."},"CERO PESOS 00/100M.N.","CERO PESOS 00/100M.N.","CERO PESOS 00/100M.N.","CERO PESOS 00/100M.N.","CERO PESOS 00/100M.N.","CERO PESOS 00/100M.N.","CERO PESOS 00/100M.N.","CERO PESOS 00/100M.N.","CERO PESOS 00/100M.N.","CERO PESOS 00/100M.N.","CERO PESOS 00/100M.N.","CERO PESOS 00/100M.N.","CERO PESOS 00/100M.N.","CERO PESOS 00/100M.N.","CERO PESOS 00/100M.N.","CERO PESOS 00/100M.N."]
["POR CONCEPTO DE : COMPROBACION DE GASTOS POR EL SERVICIO DE INTERNET, SE ANEXA ORIGINAL DE RECIBO TELEFONICO Y COMPROBANTE DE PAGO."]
[]
["PARA LOS EFECTOS LEGALES Y ADMINISTRATIVOS PROCEDENTES, SE HACE CONSTAR QUE LA FISCALIZACION QUE SUSTENTAN LA VERACIDAD DE LA DOCUMENTACION COMPROBATORIA Y JUSTIFICATORIA RELACIONADA, ASI COMO EL CUMPLIMIENTO DE LOS REQUISITOS FISCALES LA MISMA ESTABLECIDOS EN LA NORMATIVIDAD VIGENTE, ES RESPONSABILIDAD DEL DIRECTOR Y DEL JEFE DE PROYECTO DE SERVICIOS ADMINISTRATIVOS O DEL ENCARGADO DE LA MISMA Y/O RESPONSABLE (S) QUE FIRMEN ALCANCE DE LA RELACION . EN EL ENTENDIDO DE QUE PARA EFECTOS DE SUPERVISION Y AUDITORIA  LA DOCUMENTACION SOPORTE ORIGINAL SE ENVIA  A LA DIRECCION DE ADMINISTRACION FINANCIERA EN OFICINAS NACIONALES. "]
[]
[]
[]
[]
["ELABORO ",null,null,null,null,null,null,null,null,null,null,"AUTORIZO"]
[]
[]
[]
["C.P SAUL LOPEZ ESQUIVEL",null,null,null,null,null,null,null,null,null,null,"DR. JORGE GALILEO CASTILLO VAQUERA"]
["COORDINADOR DE PLANEACION OPERATIVA",null,null,null,null,null,null,null,null,null,null,"TITULAR DE LA UOD D.F"]
[]
[]
["FGC-005-061 UOD7100 F-266 OFNL"]

{"sheet":"ESTIMACION","index":2,"n_rows":71,"n_cols":4,"rows_kept":71,"cut":false,"hidden":true,"merged":[[10,0,10,3],[67,0,67,2],[70,0,70,2],[6,0,6,19],[11,0,11,3],[7,0,7,3],[8,0,8,3],[9,0,9,3]]}
[]
[]
[]
[]
[null,null,null,"Secretaría de Administración"]
[null,null,null,"Dirección de Administración Financiera"]
[]
["COLEGIO NACIONAL DE EDUCACION PROFESIONAL TECNICA"]
["UNIDAD DE OPERACIÓN DESCONCENTRADA PARA EL DISTRITO FEDERAL"]
["COORDINACION DE PLANEACION OPERATIVA"]
[]
["ESTIMACION DE PASAJES  DEL       AL      2016"]
[]
["PLANTEL:"]
[]
["FECHA","AREA","ACTIVIDAD","IMPORTE"]
[]
[]
[]
[]
[]
[]
[]
[]
[]
[]
[]
[]
[]
[]
[]
[]
[]
[]
[]
[]
[]
[]
[]
[]
[]
[]
[]
[]
[]
[]
[]
[]
[]
[]
[]
[]
[]
[]
[]
[]
[]
[]
[]
[]
[]
[]
[]
[]
[]
[null,null,"TOTAL",{"$f":"SUM(D18:D65)","v":0}]
[]
["FIRMA "]
[]
[]
["JEFE DE PROYECTO DE SERVICIOS ADMINISTRATIVOS"]

{"sheet":"FORMATO DE PASAJES","index":3,"n_rows":42,"n_cols":7,"rows_kept":42,"cut":false,"hidden":true,"merged":[[41,0,41,3],[40,0,40,3],[40,4,40,7],[41,4,41,7],[38,4,38,7],[9,0,9,7],[10,0,12,7],[25,3,25,5],[29,0,32,7],[38,0,38,3],[27,0,28,1],[27,2,28,7],[19,0,19,7],[23,0,23,7],[18,2,18,3],[42,0,42,3],[2,0,2,7],[6,0,6,1],[4,3,4,5],[15,0,16,1],[15,2,16,3],[15,4,16,5],[13,6,18,7],[13,4,13,5],[17,4,17,5],[18,4,18,5],[13,0,13,1],[17,0,17,1],[18,0,18,1],[13,2,13,3],[17,2,17,3]]}
[]
[]
["\"PASAJES COMISIONES OFICIALES\""]
[null,null,null,null,null,null,"No. De Folio"]
[null,null,null,"Ciudad de Mexico a",null,null,"2022-02-11"]
[]
["CLAVE Y PLANTEL",null,"NOMBRE DEL COMISIONADO:"]
[211,"IZTAPALAPA V","LLLLLLLLLLLLLL"]
["RECIBI LA CANTIDAD DE:",null,2]
[{"$f":"CONCATENATE(UPPER(CONVERTIRNUM(C9)),\"M.N.\")","v":"DOS PESOS 00/100M.N."}]
["CONCEPTO: PASAJES PARA ASISTIR A LA OFICINAS DEL ISSSTE."]
[]
[]
["INTERESADO",null,"JEFE INMEDIATO",null,"AUTORIZA",null,"SELLO DE LA INSTITUCION"]
[]
[{"$f":"C8","v":"LLLLLLLLLLLLLL"},null,"XXXXX",null,"WENCESLAO ORTIZ HERNANDEZ"]
[]
["FIRMA",null,{"$f":"+E18","v":"DIRECTOR"},null,"DIRECTOR"]
[]
[]
[]
[]
[]
["OFICIO DE COMISION OFICIAL"]
[]
[null,null,null,"Ciudad de Mexico a",null,null,{"$f":"G5","v":"2022-02-11"}]
[]
["COMISIONADO",null,{"$f":"C8","v":"LLLLLLLLLLLLLL"}]
[]
["POR ESTE MEDIO, LE COMENTO QUE ESTA COMISIONADA PARA ASISTIR A OFICINAS DEL ISSSTE CON LA FINALIDAD DE ENTREGAR DOCUMENTACION ADMINISTRATIVA."]
[]
[]
[]
["INFORME:"]
[]
[null,"ESCRITO A MANO"]
[]
[]
["ATENTAMENTE ",null,null,null,"ENTERADO"]
[]
[{"$f":"+E16","v":"WENCESLAO ORTIZ HERNANDEZ"},null,null,null,{"$f":"C8","v":"LLLLLLLLLLLLLL"}]
[{"$f":"+E18","v":"DIRECTOR"},null,null,null,"COMISIONADO"]

{"sheet":"TARIFAS 2019","index":4,"n_rows":13,"n_cols":3,"rows_kept":13,"cut":false,"hidden":true,"merged":[]}
["MONTOS PARA PAGO DE SAPAJES"]
[]
[60,"MONTO MAXIMO Y SOLO EN CASOS ESPECIALES"]
[null,"MONTO PARA PASAJES UOD"]
[55,"MONTO PARA PASAJES  UCI"]
[55,"SINDICATO DOCENTE"]
[70,"BANCO SANTANDER (ESTADO DE MEXICO)"]
[35,"ISSSTE"]
[35,"SORIANA","PAPEL SANITARIO"]
[40,"IZTAPALPA 3","O CUALQUIER"]
[35,"IZTACALCO 1"]
[40,"COMPRAS POR LA ZONA"]
[55,"COMPRAS EN CENTRO DE LA CDMX"]

{"sheet":"INSTRUCTIVO LLENADO","index":5,"n_rows":26,"n_cols":2,"rows_kept":26,"cut":false,"hidden":false,"merged":[[2,0,2,7],[4,0,4,7],[25,1,25,3]]}
[]
[]
["\"PASAJES COMISIONES OFICIALES\""]
[]
["INSTRUCTIVO DE LLENADO"]
[]
[1,"Fecha"]
[2,"Clave del Plantel"]
[3,"Nombre del Plantel"]
[4,"Nombre del comisionado"]
[5,"Importe con Número"]
[6,"Importe con letra"]
[7,"Nombre del lugar de visita, fecha y concepto de la comisión"]
[8,"Firma del comisionado"]
[9,"Firma del jefe inmediato"]
[10,"Firma del Director del Plantel"]
[11,"Sello de la institución y /o empresa "]
[12,"Fecha"]
[13,"Nombre del comisionado"]
[14,"Texto del oficio de comisión (debe de coincidir con el texto del oficio de comisión)"]
[15,"Informe de actividades realizadas"]
[16,"Firma del directo del Plantel"]
[17,"Nombre completo y firma del comisionado"]
[]
[]
[null,"Capturar solo áreas sombreadas"]

{"sheet":"FORMATO PASAJES","index":6,"n_rows":42,"n_cols":7,"rows_kept":42,"cut":false,"hidden":false,"merged":[[41,0,42,3],[29,0,32,7],[15,2,16,3],[15,4,16,5],[17,0,17,1],[17,2,17,3],[17,4,17,5],[18,0,18,1],[25,6,25,7],[41,4,41,7],[27,0,28,1],[27,2,28,7],[38,0,38,3],[38,4,38,7],[40,0,40,3],[40,4,40,7],[10,0,12,0],[10,1,12,7],[13,0,13,1],[13,2,13,3],[13,4,13,5],[13,6,18,7],[15,0,16,1],[18,2,18,3],[18,4,18,5],[2,0,2,7],[4,3,4,5],[6,0,6,1],[9,0,9,7],[7,2,7,7],[8,0,8,1],[8,2,8,7],[4,6,4,7],[19,0,19,7],[23,0,23,7],[25,3,25,5],[33,1,36,7],[34,0,36,0]]}
[]
[null,null,null,null,null,null,"Colegio Nacional de Educación Profesional Técnica"]
["\"PASAJES COMISIONES OFICIALES\""]
[]
[null,null,null,"Ciudad de Mexico a",null,null,"2025-07-24"]
[]
["CLAVE Y PLANTEL:",null,"NOMBRE DEL COMISIONADO:"]
[211,"IZTAPALAPA V","DANIEL SANCHEZ CRUZ"]
["RECIBI LA CANTIDAD DE:",null,1]
["UN PESO 00/100 M. N."]
["Concepto:","PASAJES PARA ASISTIR A LA UOD CDMX EL 24 DE JULIO DE 2025."]
[]
[]
["INTERESADO",null,"JEFE INMEDIATO",null,"AUTORIZA",null,"SELLO DE LA INSTITUCION"]
[]
[{"$f":"C8","v":"DANIEL SANCHEZ CRUZ"}]
[]
["FIRMA",null,"FIRMA",null,"FIRMA"]
["NOMBRE",null,"NOMBRE",null,"NOMBRE"]
[]
[]
[]
[null,null,null,null,null,null,"Colegio Nacional de Educación Profesional Técnica"]
["OFICIO DE COMISION OFICIAL"]
[]
[null,null,null,"Ciudad de Mexico a",null,null,{"$f":"G5","v":"2025-07-24"}]
[]
["COMISIONADO: ",null,{"$f":"IF(C8=\"\",\"\",C8)","v":"DANIEL SANCHEZ CRUZ"}]
[]
["Por este medio le informo que esta comisionada(o) para asistir a la UOD CDMX, ubicada en Av. Azcapotzalco, 58 col. Tacuba C.P. 11410 Alcaldía Miguel Hidalgo, CDMX el día 14  de julio de 2025 a entregar documentación del plantel."]
[]
[]
[]
["INFORME:","ASISITI A UOD CDMX EL 14 DE JULIO DE 2025 A ENTREGAR DOCUMENTACIÓN DEL PLANTEL "]
[]
[]
[]
[]
["ATENTAMENTE ",null,null,null,"ENTERADO"]
[]
[{"$f":"IF(E16=\"\",\"\", E16)","v":""},null,null,null,{"$f":"IF(C8=\"\",\"\",C8)","v":"DANIEL SANCHEZ CRUZ"}]
["ENCARGADA DEL DESPACHO DE LA DIRECCIÓN DEL PLANTEL",null,null,null,"COMISIONADO"]